bitfinex/quotes_BTCUSD_20240911
["timestamp","ask_amount","ask_price","bid_price","bid_amount"]
[1726077818114,0.02709555,57881.0,57877.0,0.345557]
[1726077818334,0.02709555,57881.0,57880.0,0.172771]
[1726077818573,0.02709555,57881.0,57873.0,0.34558]
[1726077818820,0.001,57877.0,57876.0,0.345564]
[1726077819278,0.02709555,57881.0,57877.0,0.172777]
[1726077819491,0.02709555,57881.0,57876.0,0.348564]
[1726077819704,0.02709555,57881.0,57879.0,0.172773]
[1726077819944,0.02709555,57881.0,57880.0,0.172771]
[1726077820160,0.02709555,57881.0,57880.0,0.518313]
[1726077820378,0.02709555,57881.0,57880.0,0.863855]
[1726077820606,0.02709555,57881.0,57880.0,1.56066728]
[1726077820823,0.37574,57894.0,57889.0,0.345485]
[1726077821044,0.0774,57895.0,57892.0,0.171735]
[1726077821286,0.0774,57895.0,57890.0,0.345481]
[1726077821287,0.0774,57895.0,57891.0,0.172736]
[1726077821497,0.172732,57894.0,57889.0,0.172742]
[1726077821717,0.17273,57894.0,57890.0,0.172741]
[1726077822012,0.1364,57901.0,57892.0,0.518205]
[1726077822232,0.1364,57901.0,57892.0,0.863675]
[1726077822450,0.1364,57901.0,57892.0,1.209145]
[1726077822673,0.00182,57893.0,57892.0,1.290845]
[1726077822907,0.00182,57893.0,57892.0,1.43235185]
[1726077823130,0.00282,57893.0,57892.0,1.43235185]
[1726077823582,0.00282,57893.0,57892.0,1.80082185]
[1726077824043,0.02890508,57893.0,57892.0,1.90082185]
[1726077824279,0.03090508,57893.0,57892.0,1.91882185]
[1726077824742,0.02990508,57893.0,57892.0,1.91282185]
[1726077825180,0.03090508,57893.0,57892.0,1.92382185]
[1726077826170,0.02890508,57893.0,57892.0,1.91382185]
[1726077826392,0.02890508,57893.0,57892.0,1.426845]
[1726077826608,0.02890508,57893.0,57892.0,1.435845]
[1726077826823,0.02890508,57893.0,57892.0,1.426845]
[1726077827050,0.02890508,57893.0,57892.0,1.440845]
[1726077827504,0.02890508,57893.0,57892.0,1.259145]
[1726077828004,0.02890508,57893.0,57892.0,1.232145]
[1726077828005,0.02790508,57893.0,57892.0,1.232145]
[1726077828237,0.02890508,57893.0,57892.0,1.251145]
[1726077828695,0.02790508,57893.0,57892.0,1.242145]
[1726077828924,0.02890508,57893.0,57892.0,2.08248528]
[1726077829145,0.02890508,57893.0,57892.0,1.73701528]
[1726077829365,0.02890508,57893.0,57892.0,1.90318483]
[1726077829853,0.02890508,57893.0,57892.0,1.91518483]
[1726077830064,0.02890508,57893.0,57892.0,1.88518483]
[1726077832076,0.00182,57893.0,57892.0,1.88518483]
[1726077833193,0.00182,57893.0,57892.0,2.23065483]
[1726077833455,0.00182,57893.0,57892.0,1.88518483]
[1726077833684,0.00082,57907.0,57906.0,1.208854]
[1726077833914,0.00082,57907.0,57906.0,2.0832726]
[1726077834375,0.00082,57910.0,57909.0,1.238791]
[1726077834596,0.00082,57910.0,57909.0,1.67716]
[1726077835052,0.00082,57910.0,57909.0,1.326791]
[1726077835522,0.00082,57910.0,57909.0,1.37811788]
[1726077835727,0.00182,57910.0,57909.0,1.51596055]
[1726077836583,0.02889639,57910.0,57909.0,1.52996055]
[1726077836757,0.02889639,57910.0,57909.0,1.51596055]
[1726077836960,0.02789639,57910.0,57909.0,1.50296055]
[1726077837171,0.02789639,57910.0,57909.0,1.51696055]
[1726077837780,0.02789639,57910.0,57909.0,1.50296055]
[1726077838162,0.02789639,57910.0,57909.0,1.51596055]
[1726077838436,0.02789639,57910.0,57909.0,1.95128119]
[1726077838642,0.02789639,57910.0,57909.0,1.93828119]
[1726077839053,0.00082,57910.0,57909.0,1.95228119]
[1726077839265,0.00082,57910.0,57909.0,2.31365019]
[1726077839696,0.00082,57910.0,57909.0,2.44695019]
[1726077839878,0.00082,57910.0,57909.0,2.46095019]
[1726077840090,0.00082,57910.0,57909.0,2.44695019]
[1726077840426,0.00082,57910.0,57909.0,2.46095019]
[1726077840896,0.00082,57910.0,57909.0,2.11558119]
[1726077841377,0.00082,57910.0,57909.0,2.06058119]
[1726077841586,0.00082,57910.0,57909.0,2.03058119]
[1726077842118,0.00082,57910.0,57909.0,1.91822955]
[1726077842354,0.00082,57910.0,57909.0,0.541053]
[1726077842793,0.00082,57910.0,57909.0,0.886422]
[1726077843246,0.00082,57910.0,57909.0,0.527053]
[1726077843436,0.00082,57910.0,57909.0,0.872422]
[1726077843690,0.00082,57910.0,57909.0,0.520053]
[1726077844233,0.00082,57910.0,57909.0,0.858422]
[1726077844450,0.00082,57910.0,57909.0,0.513053]
[1726077844663,0.00082,57910.0,57909.0,0.514053]
[1726077844880,0.00082,57910.0,57909.0,0.859422]
[1726077845059,0.0279,57910.0,57909.0,0.868422]
[1726077845493,0.0279,57910.0,57909.0,0.01]
[1726077845711,0.0279,57910.0,57909.0,0.182684]
[1726077845922,0.0279,57910.0,57909.0,0.181684]
[1726077846124,0.0279,57910.0,57909.0,0.192684]
[1726077846331,0.0279,57910.0,57909.0,0.874422]
[1726077846553,0.0279,57910.0,57909.0,0.172684]
[1726077846778,0.0279,57910.0,57909.0,0.533053]
[1726077847272,0.0279,57910.0,57909.0,0.529053]
[1726077847463,0.0279,57910.0,57909.0,0.527053]
[1726077847680,0.0279,57910.0,57909.0,0.872422]
[1726077847898,0.0279,57910.0,57909.0,0.532053]
[1726077848339,0.0279,57910.0,57909.0,0.890422]
[1726077848822,0.0279,57910.0,57909.0,0.545053]
[1726077849924,0.0279,57910.0,57909.0,0.890422]
[1726077850348,0.0279,57910.0,57909.0,0.518053]
[1726077850561,0.0279,57910.0,57909.0,0.526053]
[1726077850986,0.0279,57910.0,57909.0,0.521053]
[1726077851195,0.0279,57910.0,57909.0,0.870422]
[1726077851401,0.0279,57910.0,57909.0,0.863422]
[1726077851615,0.0279,57910.0,57909.0,0.868422]
[1726077851827,0.0279,57910.0,57909.0,0.880422]
[1726077852040,0.0279,57910.0,57909.0,1.0140023]
[1726077852253,0.00082,57910.0,57909.0,1.3593713]
[1726077852686,0.00082,57910.0,57909.0,1.3543713]
[1726077852911,0.00082,57910.0,57909.0,1.208791]
[1726077853391,0.00082,57910.0,57909.0,1.222791]
[1726077853886,0.00082,57910.0,57909.0,1.245791]
[1726077854132,0.00082,57910.0,57909.0,1.330691]
[1726077854354,0.00082,57910.0,57909.0,2.03663129]
[1726077854576,0.00082,57910.0,57909.0,2.05063129]
[1726077854809,0.00082,57910.0,57909.0,2.11258293]
[1726077855037,0.00082,57910.0,57909.0,2.45795193]
[1726077855517,0.00082,57910.0,57909.0,2.11058293]
[1726077855980,0.00082,57910.0,57909.0,2.11258293]
[1726077856272,0.00082,57910.0,57909.0,2.45795193]
[1726077856512,0.00082,57910.0,57909.0,2.09858293]
[1726077856731,0.02789397,57910.0,57909.0,2.12475455]
[1726077856951,0.02789397,57910.0,57909.0,2.11075455]
[1726077857175,0.02789397,57910.0,57909.0,2.44212355]
[1726077857398,0.02789397,57910.0,57909.0,2.45612355]
[1726077857852,0.02789397,57910.0,57909.0,2.12475455]
[1726077858320,0.02789397,57910.0,57909.0,2.12275455]
[1726077858563,0.02789397,57910.0,57909.0,2.15744455]
[1726077859000,0.02789397,57910.0,57909.0,2.01454455]
[1726077859238,0.02789397,57910.0,57909.0,2.01618455]
[1726077859508,0.02789397,57910.0,57909.0,1.78361326]
[1726077860479,0.02789397,57910.0,57909.0,1.77144164]
[1726077860701,0.02789397,57910.0,57909.0,1.77344164]
[1726077860932,0.02789397,57910.0,57909.0,1.77144164]
[1726077861642,0.02789397,57910.0,57909.0,1.261431]
[1726077862125,0.02789397,57910.0,57909.0,1.3875741]
[1726077862358,0.02789397,57910.0,57909.0,1.261431]
[1726077862597,0.00082,57910.0,57909.0,1.224431]
[1726077863040,0.00082,57910.0,57909.0,1.324431]
[1726077863277,0.00082,57910.0,57909.0,1.310431]
[1726077863509,0.00082,57910.0,57909.0,1.324431]
[1726077863767,0.00082,57910.0,57909.0,1.310431]
[1726077864154,0.00082,57910.0,57909.0,1.5054127]
[1726077864369,0.00082,57910.0,57909.0,1.69102365]
[1726077864762,0.00082,57910.0,57909.0,1.70502365]
[1726077865030,0.00082,57910.0,57909.0,2.05039265]
[1726077865231,0.00082,57910.0,57909.0,2.07339265]
[1726077865346,0.00082,57910.0,57909.0,2.31204429]
[1726077865954,0.00082,57910.0,57909.0,2.33912029]
[1726077866172,0.00082,57910.0,57909.0,2.35100354]
[1726077866679,0.00082,57910.0,57909.0,2.34900354]
[1726077866906,0.02789446,57910.0,57909.0,2.34900354]
[1726077869608,0.00082,57910.0,57909.0,2.34900354]
[1726077870297,0.00082,57910.0,57909.0,2.35100354]
[1726077871644,0.00082,57910.0,57909.0,2.69637254]
[1726077871861,0.00082,57910.0,57909.0,2.35100354]
[1726077872516,0.00082,57910.0,57909.0,2.69637254]
[1726077872746,0.00082,57910.0,57909.0,2.40242328]
[1726077873039,0.0032805,57923.0,57920.0,0.03]
[1726077873270,0.0032805,57923.0,57922.0,1.80641995]
[1726077874234,0.0032805,57923.0,57922.0,2.15371095]
[1726077874449,0.0032805,57923.0,57922.0,2.01983436]
[1726077874671,0.0032805,57923.0,57922.0,2.14935329]
[1726077874915,0.0032805,57923.0,57922.0,2.20083162]
[1726077875131,0.0032805,57923.0,57922.0,2.49010206]
[1726077875652,0.0032805,57923.0,57922.0,2.41297245]
[1726077875870,0.0032805,57923.0,57922.0,2.41097245]
[1726077876091,0.0032805,57923.0,57922.0,2.48819113]
[1726077876342,0.0032805,57923.0,57922.0,2.23757197]
[1726077876572,0.0032805,57923.0,57922.0,2.13335329]
[1726077876812,0.0032805,57923.0,57922.0,2.48908218]
[1726077877045,0.0032805,57923.0,57922.0,2.21814884]
[1726077877279,0.0032805,57923.0,57922.0,1.331518]
[1726077877503,0.0032805,57923.0,57922.0,1.345518]
[1726077877732,0.0032805,57923.0,57922.0,1.75629675]
[1726077877965,0.0032805,57923.0,57922.0,1.44100575]
[1726077878199,0.0032805,57923.0,57922.0,1.9624663]
[1726077878652,0.0032805,57923.0,57922.0,1.53568755]
[1726077879415,0.0032805,57923.0,57922.0,1.58720578]
[1726077879752,0.0032805,57923.0,57922.0,1.95827461]
[1726077880231,0.0032805,57923.0,57922.0,1.98827461]
[1726077880456,0.01353505,57924.0,57923.0,1.32344864]
[1726077880709,0.01353505,57924.0,57923.0,1.99018333]
[1726077880944,0.01353505,57924.0,57923.0,2.36124547]
[1726077881172,0.01353505,57924.0,57923.0,2.3309425]
[1726077881398,0.01353505,57924.0,57923.0,2.25588259]
[1726077881853,0.00082,57926.0,57925.0,1.208459]
[1726077882084,0.00082,57926.0,57925.0,1.58914335]
[1726077882310,0.00082,57926.0,57925.0,1.90441735]
[1726077882524,0.00082,57926.0,57925.0,1.93441735]
[1726077882743,0.00082,57926.0,57925.0,1.3599738]
[1726077882984,0.00082,57926.0,57925.0,1.308459]
[1726077883228,0.00082,57926.0,57925.0,1.338459]
[1726077883457,0.00082,57926.0,57925.0,1.683733]
[1726077883687,0.00082,57926.0,57925.0,1.336459]
[1726077883903,0.00082,57926.0,57925.0,1.53562855]
[1726077884577,0.00082,57926.0,57925.0,1.54254955]
[1726077884811,0.02788918,57926.0,57925.0,1.54254955]
[1726077885817,0.02788918,57926.0,57925.0,1.36638]
[1726077886009,0.02788918,57926.0,57925.0,1.359459]
[1726077886937,0.02788918,57926.0,57925.0,0.891185]
[1726077887221,1.03845918,57926.0,57925.0,0.028]
[1726077887472,0.863407,57910.0,57902.0,0.0514969]
[1726077887701,0.863407,57910.0,57904.0,0.172697]
[1726077887702,0.320081,57910.0,57904.0,0.172697]
[1726077887930,0.320081,57910.0,57902.0,0.34541]
[1726077887931,0.1474,57910.0,57905.0,0.345391]
[1726077888173,0.1474,57910.0,57898.0,0.345431]
[1726077888174,0.34716268,57910.0,57898.0,0.345431]
[1726077888424,0.34716268,57910.0,57905.0,0.172694]
[1726077888688,0.34716268,57910.0,57901.0,0.345413]
[1726077888926,0.34716268,57910.0,57905.0,0.172696]
[1726077889629,0.34716268,57910.0,57903.0,0.1727]
[1726077889630,0.69252568,57910.0,57903.0,0.1727]
[1726077889849,0.34916268,57910.0,57905.0,0.172696]
[1726077890078,0.34716268,57910.0,57905.0,0.172696]
[1726077890318,0.17648168,57910.0,57909.0,0.174324]
[1726077890544,0.17948168,57910.0,57909.0,0.00164]
[1726077890773,0.17748168,57910.0,57909.0,0.00164]
[1726077891049,0.17448168,57910.0,57909.0,0.00164]
[1726077891288,0.18248168,57910.0,57909.0,0.00264]
[1726077892026,0.69169217,57910.0,57909.0,0.00264]
[1726077892256,1.018807,57910.0,57909.0,0.00264]
[1726077892735,1.016807,57910.0,57909.0,0.00264]
[1726077892973,1.016807,57910.0,57909.0,0.00164]
[1726077892974,1.017807,57910.0,57909.0,0.00164]
[1726077893206,1.024807,57910.0,57909.0,0.00164]
[1726077893439,1.010807,57910.0,57909.0,0.00164]
[1726077893688,0.673444,57910.0,57909.0,0.00164]
[1726077893911,1.18888466,57910.0,57909.0,0.00164]
[1726077894131,1.025807,57910.0,57909.0,0.00164]
[1726077895343,1.05289177,57910.0,57909.0,0.00164]
[1726077895579,1.04589177,57910.0,57909.0,0.00164]
[1726077895807,0.69252877,57910.0,57909.0,0.00164]
[1726077896031,0.71652877,57910.0,57909.0,0.00264]
[1726077896263,1.06189177,57910.0,57909.0,0.00164]
[1726077896492,1.06489177,57910.0,57909.0,0.00264]
[1726077896946,0.21348477,57910.0,57909.0,0.00264]
[1726077897209,0.21348477,57910.0,57909.0,0.866062]
[1726077897431,0.21348477,57910.0,57909.0,1.2980372]
[1726077897432,0.06608477,57910.0,57909.0,1.2980372]
[1726077898877,0.02708477,57910.0,57909.0,1.2970372]
[1726077899131,0.04508477,57910.0,57909.0,0.866062]
[1726077899368,0.04508477,57910.0,57909.0,0.865062]
[1726077899612,0.03908477,57910.0,57909.0,0.519693]
[1726077899844,0.03908477,57910.0,57909.0,0.00164]
[1726077900066,0.18518477,57910.0,57909.0,0.00164]
[1726077900527,1.04859177,57910.0,57909.0,0.00164]
[1726077901179,1.39395477,57910.0,57909.0,0.00164]
[1726077901293,1.36687,57910.0,57909.0,0.00164]
[1726077901498,1.87646486,57910.0,57909.0,0.00164]
[1726077901717,2.00646486,57910.0,57909.0,0.00164]
[1726077902142,2.00646486,57910.0,57885.0,0.05146073]
[1726077902143,1.00356,57893.0,57885.0,0.05146073]
[1726077902366,0.658096,57893.0,57885.0,0.05146073]
[1726077902625,1.00356,57893.0,57885.0,0.05146073]
[1726077903049,1.349024,57893.0,57885.0,0.05146073]
[1726077903256,1.479024,57893.0,57885.0,0.05146073]
[1726077903473,1.209271,57886.0,57885.0,0.05146073]
[1726077903688,1.72900062,57886.0,57885.0,0.05146073]
[1726077903902,2.10450662,57886.0,57885.0,0.05146073]
[1726077904318,2.14532452,57886.0,57885.0,0.05146073]
[1726077904537,2.17242217,57886.0,57885.0,0.05146073]
[1726077904971,2.21568366,57886.0,57885.0,0.05146073]
[1726077905176,2.13160427,57886.0,57885.0,0.05146073]
[1726077906379,0.86384,57881.0,57880.0,0.00164]
[1726077906619,0.96384,57881.0,57880.0,0.00164]
[1726077907333,1.04144,57881.0,57880.0,0.00164]
[1726077907811,0.250368,57881.0,57880.0,0.00164]
[1726077908044,0.595904,57881.0,57880.0,0.00164]
[1726077908286,0.250368,57881.0,57880.0,0.00164]
[1726077908494,0.44635055,57886.0,57881.0,0.172766]
[1726077908495,0.34475265,57886.0,57881.0,0.172766]
[1726077908717,0.172764,57883.0,57880.0,0.00164]
[1726077908944,0.172768,57881.0,57880.0,0.00164]
[1726077909387,0.84519444,57881.0,57880.0,0.00164]
[1726077909606,1.68256644,57881.0,57880.0,0.00164]
[1726077910316,1.68456644,57881.0,57880.0,0.00164]
[1726077910531,1.63230562,57881.0,57880.0,0.00164]
[1726077910720,1.63030562,57881.0,57880.0,0.00164]
[1726077910931,1.64330562,57881.0,57880.0,0.00164]
[1726077911374,2.13877364,57881.0,57880.0,0.00164]
[1726077911643,2.26501117,57881.0,57880.0,0.00164]
[1726077912055,2.2771436,57881.0,57880.0,0.00164]
[1726077912289,2.10197405,57881.0,57880.0,0.00164]
[1726077912529,2.08797405,57881.0,57880.0,0.00164]
[1726077912770,2.11597405,57881.0,57880.0,0.00164]
[1726077912990,2.10197405,57881.0,57880.0,0.00164]
[1726077913212,2.08797405,57881.0,57880.0,0.00164]
[1726077913432,1.77043805,57881.0,57880.0,0.00164]
[1726077913886,0.028,57881.0,57880.0,0.00164]
[1726077914116,0.186768,57881.0,57880.0,0.00164]
[1726077914329,0.014,57881.0,57880.0,0.00164]
[1726077914547,0.014,57881.0,57880.0,0.174411]
[1726077914775,0.014,57881.0,57880.0,0.347182]
[1726077914986,0.02709678,57881.0,57880.0,0.00164]
[1726077915198,0.21386478,57881.0,57880.0,0.00164]
[1726077915418,0.19986478,57881.0,57880.0,0.00164]
[1726077915641,0.21386478,57881.0,57880.0,0.00164]
[1726077915851,0.04109678,57881.0,57880.0,0.00164]
[1726077916068,0.02709678,57881.0,57880.0,0.00164]
[1726077916284,0.20886478,57881.0,57880.0,0.00164]
[1726077916508,0.03609678,57881.0,57880.0,0.00164]
[1726077916791,0.20886478,57881.0,57880.0,0.00164]
[1726077917012,0.21886478,57881.0,57880.0,0.00164]
[1726077918150,0.20986478,57881.0,57880.0,0.00164]
[1726077918365,0.21286478,57881.0,57880.0,0.00164]
[1726077918598,0.20986478,57881.0,57880.0,0.00164]
[1726077918826,0.19986478,57881.0,57880.0,0.00164]
[1726077919047,0.54540078,57881.0,57880.0,0.00164]
[1726077919307,1.23747278,57881.0,57880.0,0.00164]
[1726077919530,1.38427278,57881.0,57880.0,0.00164]
[1726077919761,1.39027278,57881.0,57880.0,0.00164]
[1726077919977,1.04473678,57881.0,57880.0,0.00164]
[1726077920216,0.69420078,57881.0,57880.0,0.00164]
[1726077920441,1.04073678,57881.0,57880.0,0.00164]
[1726077921096,1.03973678,57881.0,57880.0,0.00164]
[1726077921515,1.04773678,57881.0,57880.0,0.00164]
[1726077921755,1.03873678,57881.0,57880.0,0.00164]
[1726077922231,0.69320078,57881.0,57880.0,0.00264]
[1726077922437,0.02709678,57881.0,57880.0,0.00264]
[1726077922658,0.172763,57883.0,57880.0,0.00264]
[1726077922659,0.172764,57883.0,57880.0,0.00264]
[1726077922888,0.0812,57886.0,57880.0,0.00264]
[1726077922889,0.014,57881.0,57880.0,0.00264]
[1726077923339,0.172762,57883.0,57880.0,0.00264]
[1726077923561,0.426708,57886.0,57880.0,0.00264]
[1726077923778,0.172766,57882.0,57880.0,0.00264]
[1726077924027,0.172768,57881.0,57880.0,0.00264]
[1726077924509,0.172768,57881.0,57880.0,0.00164]
[1726077924722,0.518304,57881.0,57880.0,0.00164]
[1726077925168,0.34553,57882.0,57880.0,0.00164]
[1726077925383,0.518304,57881.0,57880.0,0.00164]
[1726077925616,0.54540073,57881.0,57880.0,0.00164]
[1726077925848,0.89093673,57881.0,57880.0,0.00164]
[1726077926299,0.54540073,57881.0,57880.0,0.00164]
[1726077926990,0.54640073,57881.0,57880.0,0.00164]
[1726077927430,1.23747273,57881.0,57880.0,0.00164]
[1726077927649,0.89193673,57881.0,57880.0,0.00164]
[1726077927913,0.54640073,57881.0,57880.0,0.00164]
[1726077928148,0.02909673,57881.0,57880.0,0.00364]
[1726077928363,0.02709673,57881.0,57880.0,0.174411]
[1726077928598,0.02909673,57881.0,57880.0,0.519953]
[1726077928837,0.03009673,57881.0,57880.0,0.519953]
[1726077929069,0.02809673,57881.0,57880.0,0.519953]
[1726077929295,0.02809673,57881.0,57880.0,0.523953]
[1726077929780,0.02809673,57881.0,57880.0,0.9589366]
[1726077929781,0.02709673,57881.0,57880.0,0.9589366]
[1726077930282,0.02709673,57881.0,57880.0,1.3044786]
[1726077930549,0.02709673,57881.0,57880.0,1.67970822]
[1726077930778,0.02709673,57881.0,57880.0,1.4050786]
[1726077931012,0.02709673,57881.0,57880.0,1.313637]
[1726077931013,0.02809673,57881.0,57880.0,1.313637]
[1726077931246,0.02809673,57881.0,57880.0,1.311637]
[1726077931247,0.02709673,57881.0,57880.0,1.311637]
[1726077931725,0.02809673,57881.0,57880.0,1.311637]
[1726077931954,0.001,57881.0,57880.0,1.31636453]
[1726077932207,0.002,57881.0,57880.0,1.31836453]
[1726077932432,0.37574,57895.0,57891.0,0.237638]
[1726077932665,0.548467,57895.0,57891.0,0.172738]
[1726077932884,0.548467,57895.0,57891.0,0.00467924]
[1726077932885,0.172731,57894.0,57891.0,0.00467924]
[1726077933144,0.37574,57895.0,57891.0,0.17741724]
[1726077933365,0.17272,57897.0,57891.0,0.52289324]
[1726077933591,0.00182,57892.0,57891.0,0.17741724]
[1726077933808,0.00182,57892.0,57891.0,0.00467924]
[1726077934021,0.00182,57892.0,57891.0,0.52289324]
[1726077934243,0.00182,57892.0,57891.0,0.17941724]
[1726077934244,0.00282,57892.0,57891.0,0.17941724]
[1726077934458,0.00282,57892.0,57891.0,0.00667924]
[1726077934693,0.175555,57892.0,57891.0,0.00667924]
[1726077935160,0.00282,57892.0,57891.0,0.002]
[1726077935382,0.00282,57892.0,57891.0,0.00664775]
[1726077935632,0.175555,57892.0,57891.0,0.002]
[1726077936078,0.00282,57892.0,57891.0,0.174738]
[1726077936306,0.00282,57892.0,57891.0,0.87033775]
[1726077936558,0.02990998,57892.0,57891.0,1.26783585]
[1726077936806,0.02990998,57892.0,57891.0,0.92235985]
[1726077937586,0.02990998,57892.0,57891.0,0.87033775]
[1726077941293,0.02990998,57892.0,57891.0,0.52486175]
[1726077941736,0.02990998,57892.0,57891.0,0.87033775]
[1726077941963,0.00282,57892.0,57891.0,0.93173775]
[1726077945298,0.00282,57892.0,57891.0,1.27721375]
[1726077945299,0.02990836,57892.0,57891.0,1.27721375]
[1726077945541,0.02990836,57892.0,57891.0,1.54438502]
[1726077945795,0.02990836,57892.0,57891.0,2.07981266]
[1726077946263,0.02990836,57892.0,57891.0,2.33104943]
[1726077946493,0.00746904,57892.0,57891.0,2.29145458]
[1726077946727,0.000819,57912.0,57911.0,1.272049]
[1726077946963,0.000819,57912.0,57911.0,0.926692]
[1726077947190,0.000819,57912.0,57911.0,0.93133201]
[1726077947416,0.000819,57912.0,57911.0,1.27668901]
[1726077947923,0.000819,57912.0,57911.0,0.86803201]
[1726077948161,0.000819,57912.0,57911.0,0.95483521]
[1726077948646,0.000819,57912.0,57911.0,0.60947821]
[1726077948902,0.001819,57912.0,57911.0,0.27412121]
[1726077949143,0.001819,57912.0,57911.0,0.01464001]
[1726077949611,0.235894,57912.0,57911.0,0.01464001]
[1726077949842,0.064219,57912.0,57911.0,0.02864001]
[1726077950297,0.063219,57912.0,57911.0,0.01464001]
[1726077950978,0.062219,57912.0,57911.0,0.00464001]
[1726077951198,0.063219,57912.0,57911.0,0.01464001]
[1726077951416,0.063219,57912.0,57911.0,0.01]
[1726077951617,0.064219,57912.0,57911.0,0.02164001]
[1726077951763,0.236894,57912.0,57911.0,0.02164001]
[1726077951979,0.234894,57912.0,57911.0,0.00464001]
[1726077952184,0.925596,57912.0,57911.0,0.003]
[1726077952490,1.270947,57912.0,57911.0,0.005]
[1726077953293,1.270947,57912.0,57911.0,0.003]
[1726077953499,1.279947,57912.0,57911.0,0.004]
[1726077954150,1.279947,57912.0,57911.0,0.001]
[1726077954364,1.287947,57912.0,57911.0,0.002]
[1726077954562,0.172709,57901.0,57897.0,0.172719]
[1726077954818,0.172705,57903.0,57896.0,0.345443]
[1726077955055,0.27457602,57909.0,57901.0,0.172706]
[1726077955317,0.172699,57905.0,57901.0,0.172706]
[1726077955533,0.02708439,57902.0,57901.0,0.172706]
[1726077957331,0.02708439,57902.0,57901.0,0.172708]
[1726077958016,0.02808439,57902.0,57901.0,0.172708]
[1726077958451,0.02708439,57902.0,57901.0,0.172708]
[1726077958691,0.02808439,57902.0,57901.0,0.173708]
[1726077958890,0.02890439,57902.0,57901.0,0.173708]
[1726077959388,0.02990439,57902.0,57901.0,0.173708]
[1726077959832,0.54802039,57902.0,57901.0,0.001]
[1726077960063,1.03783139,57902.0,57901.0,0.001]
[1726077960521,0.02990439,57902.0,57901.0,0.173708]
[1726077960753,0.02990439,57902.0,57901.0,0.001]
[1726077960754,0.54802039,57902.0,57901.0,0.001]
[1726077960991,0.20260939,57902.0,57901.0,0.00556921]
[1726077961219,0.54802039,57902.0,57901.0,0.001]
[1726077961449,0.89343139,57902.0,57901.0,0.00556921]
[1726077961672,0.89343139,57902.0,57901.0,0.001]
[1726077962140,0.89243139,57902.0,57901.0,0.001]
[1726077962400,0.02890439,57902.0,57901.0,0.001]
[1726077962624,0.03590439,57902.0,57901.0,0.519125]
[1726077962912,0.03590439,57902.0,57901.0,0.6055811]
[1726077963144,0.03590439,57902.0,57901.0,0.61016721]
[1726077964041,0.02790439,57902.0,57901.0,0.60916721]
[1726077964264,0.03590439,57902.0,57901.0,0.60916721]
[1726077964488,0.04290439,57902.0,57901.0,0.95458421]
[1726077964743,0.04290439,57902.0,57901.0,1.01948421]
[1726077964744,0.02790439,57902.0,57901.0,1.01948421]
[1726077964985,0.02890439,57902.0,57901.0,1.36490121]
[1726077965483,0.02890439,57902.0,57901.0,1.38790121]
[1726077967160,0.02790439,57902.0,57901.0,1.38790121]
[1726077968064,0.02890439,57902.0,57901.0,1.38990121]
[1726077968334,0.02890439,57902.0,57901.0,1.38790121]
[1726077968848,0.02890439,57902.0,57901.0,1.73331821]
[1726077969096,0.02990439,57902.0,57901.0,2.1423216]
[1726077971507,0.02890439,57902.0,57901.0,2.1423216]
[1726077971723,0.02890439,57902.0,57901.0,2.54769024]
[1726077971724,0.01612098,57902.0,57901.0,2.54769024]
[1726077971946,0.000819,57912.0,57911.0,1.261749]
[1726077972171,0.000819,57912.0,57911.0,2.04990939]
[1726077972430,0.000819,57912.0,57911.0,2.11440691]
[1726077974258,0.001819,57912.0,57911.0,2.12240691]
[1726077975167,0.002819,57912.0,57911.0,2.13540691]
[1726077975393,0.002819,57912.0,57911.0,2.22186301]
[1726077976117,0.002819,57912.0,57911.0,2.16191137]
[1726077976369,0.002819,57912.0,57911.0,2.22186301]
[1726077976585,0.002819,57912.0,57911.0,2.07926301]
[1726077977266,0.002819,57912.0,57911.0,1.50425098]
[1726077977966,0.002819,57912.0,57911.0,1.84960798]
[1726077978231,0.002819,57912.0,57911.0,1.87960798]
[1726077978450,0.002819,57912.0,57911.0,2.56542001]
[1726077978906,0.00082,57926.0,57925.0,1.208459]
[1726077979126,0.00082,57926.0,57925.0,0.9902809]
[1726077979351,0.00082,57926.0,57925.0,0.99482323]
[1726077979785,0.00082,57926.0,57925.0,0.86772733]
[1726077980228,0.00082,57926.0,57925.0,0.87072733]
[1726077981315,0.00082,57926.0,57925.0,0.87572733]
[1726077985048,0.00082,57926.0,57925.0,1.22100133]
[1726077985260,0.00082,57926.0,57925.0,0.87572733]
[1726077985962,0.00082,57926.0,57925.0,1.36610166]
[1726077986185,0.00082,57926.0,57925.0,1.56580505]
[1726077990607,0.00082,57926.0,57925.0,1.91107905]
[1726077990827,0.00082,57926.0,57925.0,2.10447905]
[1726077991539,0.00082,57926.0,57925.0,1.75920505]
[1726077992217,0.00082,57926.0,57925.0,2.09647905]
[1726077992686,0.00082,57926.0,57925.0,2.07047905]
[1726077992899,0.00082,57926.0,57925.0,1.72520505]
[1726077993138,0.00182,57926.0,57925.0,1.72720505]
[1726077993375,0.00282,57926.0,57925.0,1.73320505]
[1726077993857,0.00182,57926.0,57925.0,1.34200133]
[1726077994318,0.00182,57926.0,57925.0,0.89072733]
[1726077994319,0.00082,57926.0,57925.0,0.89072733]
[1726077994770,0.00182,57926.0,57925.0,1.24300133]
[1726077994993,0.02789157,57926.0,57925.0,0.89072733]
[1726077995186,0.02889157,57926.0,57925.0,0.52845333]
[1726077995464,0.09619157,57926.0,57925.0,0.19717933]
[1726077995684,0.09519157,57926.0,57925.0,0.19117933]
[1726077995907,0.09519157,57926.0,57925.0,0.54445333]
[1726077996126,0.09519157,57926.0,57925.0,0.53045333]
[1726077996354,0.09519157,57926.0,57925.0,0.01254233]
[1726077996578,0.68999357,57926.0,57925.0,0.01254233]
[1726077996799,0.68999357,57926.0,57925.0,0.008]
[1726077997046,0.17264,57924.0,57920.0,0.17265]
[1726077997270,0.172643,57923.0,57919.0,0.172653]
[1726077997493,0.17109157,57926.0,57921.0,0.00447068]
[1726077997718,0.172637,57925.0,57918.0,0.345314]
[1726077997942,0.172637,57925.0,57921.0,0.172647]
[1726077998394,0.003,57924.0,57921.0,0.172647]
[1726077998614,0.172637,57925.0,57922.0,0.00447068]
[1726077999098,0.172637,57925.0,57921.0,0.177647]